fUSD/lending_fUSD_20240902
["ID","MTS","AMOUNT","RATE_DAILY","PERIOD"]
[336918914,1725241871935,-500.0,0.00022467,2]
[336918916,1725241871947,-848.24,0.00022467,2]
[336918918,1725241871959,-500.0,0.00022467,2]
[336918920,1725241871968,-500.0,0.00022467,2]
[336918922,1725241871977,-500.0,0.00022467,2]
[336918925,1725241871988,-500.0,0.00022467,2]
[336918927,1725241872000,-1391.92,0.00022467,2]
[336918929,1725241872009,-1391.92,0.00022467,2]
[336918931,1725241872019,-1391.92,0.00022467,2]
[336918933,1725241872030,-1046.87,0.00022467,2]
[336918935,1725241872040,-1046.87,0.00022467,2]
[336918936,1725241872050,-1046.87,0.00022467,2]
[336918937,1725241872060,-500.0,0.00022467,2]
[336918938,1725241872070,-675.8,0.00022467,2]
[336918939,1725241872080,-500.0,0.00022467,2]
[336918940,1725241872090,-1303.18,0.00022467,2]
[336918941,1725241872100,-793.48,0.00022467,2]
[336918942,1725241872111,-500.0,0.00022467,2]
[336918943,1725241872121,-793.48,0.00022467,2]
[336918944,1725241872131,-1303.18,0.00022467,2]
[336918945,1725241872142,-500.0,0.00022467,2]
[336918946,1725241872151,-793.48,0.00022467,2]
[336918947,1725241872162,-1303.18,0.00022467,2]
[336918948,1725241872174,-500.0,0.00022467,2]
[336918949,1725241872186,-500.0,0.00022467,2]
[336918950,1725241872197,-500.0,0.00022467,2]
[336918951,1725241872208,-500.0,0.00022467,2]
[336918952,1725241872218,-500.0,0.00022467,2]
[336918953,1725241872228,-500.0,0.00022467,2]
[336918954,1725241872240,-953.42,0.00022467,2]
[336918955,1725241872251,-953.42,0.00022467,2]
[336918956,1725241872261,-953.42,0.00022467,2]
[336918957,1725241872271,-500.0,0.00022467,2]
[336918958,1725241872281,-500.0,0.00022467,2]
[336918959,1725241872291,-500.0,0.00022467,2]
[336918960,1725241872301,-500.0,0.00022467,2]
[336918961,1725241872311,-500.0,0.00022467,2]
[336918962,1725241872322,-500.0,0.00022467,2]
[336918963,1725241872332,-976.33,0.00022467,2]
[336918964,1725241872342,-976.33,0.00022467,2]
[336918965,1725241872352,-656.52,0.00022467,2]
[336918966,1725241872363,-976.33,0.00022467,2]
[336918967,1725241872375,-500.0,0.00022467,2]
[336918968,1725241872385,-656.52,0.00022467,2]
[336918969,1725241872395,-656.52,0.00022467,2]
[336918970,1725241872404,-1233.94,0.00022467,2]
[336918971,1725241872414,-500.0,0.00022467,2]
[336918972,1725241872426,-500.0,0.00022467,2]
[336918973,1725241872436,-1233.94,0.00022467,2]
[336918974,1725241872446,-500.0,0.00022467,2]
[336918975,1725241872456,-1233.94,0.00022467,2]
[336918976,1725241872466,-500.0,0.00022467,2]
[336918977,1725241872476,-500.0,0.00022467,2]
[336918978,1725241872488,-500.0,0.00022467,2]
[336918979,1725241872499,-500.0,0.00022467,2]
[336918980,1725241872509,-500.0,0.00022467,2]
[336918981,1725241872519,-500.0,0.00022467,2]
[336918982,1725241872529,-544.48,0.00022467,2]
[336918983,1725241872538,-544.48,0.00022467,2]
[336918984,1725241872548,-544.48,0.00022467,2]
[336918985,1725241872557,-989.04,0.00022467,2]
[336918986,1725241872570,-1588.18,0.00022467,2]
[336918987,1725241872583,-1588.18,0.00022467,2]
[336918988,1725241872593,-500.0,0.00022467,2]
[336918989,1725241872603,-1588.18,0.00022467,2]
[336918990,1725241872616,-771.14,0.00022467,2]
[336918991,1725241872809,-500.0,0.00022467,2]
[336918992,1725241872820,-1153.39,0.00022467,2]
[336918993,1725241872834,-1153.39,0.00022467,2]
[336918994,1725241872846,-1153.39,0.00022467,2]
[336918995,1725241872857,-1612.92,0.00022467,2]
[336918996,1725241872868,-1612.92,0.00022467,2]
[336918997,1725241872877,-1612.92,0.00022467,2]
[336918998,1725241872887,-1798.3,0.00022467,2]
[336918999,1725241872896,-1798.3,0.00022467,2]
[336919000,1725241872905,-1798.3,0.00022467,2]
[336919001,1725241872914,-745.45,0.00022467,2]
[336919002,1725241872923,-745.45,0.00022467,2]
[336919003,1725241872932,-500.0,0.00022467,2]
[336919004,1725241872941,-745.45,0.00022467,2]
[336919005,1725241872950,-293.65428086,0.00022467,2]
[336919006,1725241872960,-1611.49,0.00022467,2]
[336919007,1725241872969,-3918.76,0.00022467,2]
[336919008,1725241872979,-3918.76,0.00022467,2]
[336919009,1725241872989,-3918.76,0.00022467,2]
[336919010,1725241872999,-1391.48,0.00022467,2]
[336919011,1725241873009,-1391.48,0.00022467,2]
[336919012,1725241873020,-1391.48,0.00022467,2]
[336919013,1725241873030,-579.33,0.00022467,2]
[336919014,1725241873039,-579.33,0.00022467,2]
[336919015,1725241873049,-500.0,0.00022467,2]
[336919016,1725241873058,-717.79,0.00022467,2]
[336919017,1725241873068,-579.33,0.00022467,2]
[336919018,1725241873078,-500.0,0.00022467,2]
[336919019,1725241873087,-717.79,0.00022467,2]
[336919020,1725241873098,-717.79,0.00022467,2]
[336919021,1725241873107,-500.0,0.00022467,2]
[336919022,1725241873117,-500.0,0.00022467,2]
[336919023,1725241873127,-500.0,0.00022467,2]
[336919024,1725241873136,-784.99,0.00022467,2]
[336919025,1725241873146,-1892.35,0.00022467,2]
[336919026,1725241873155,-184.86754934,0.00022467,2]
[336919027,1725241873164,-1768.03,0.00022467,2]
[336919028,1725241873173,-1768.03,0.00022467,2]
[336919029,1725241873183,-1768.03,0.00022467,2]
[336919030,1725241873193,-500.0,0.00022467,2]
[336919031,1725241873203,-1275.08,0.00022467,2]
[336919032,1725241873213,-1275.08,0.00022467,2]
[336919033,1725241873222,-1275.08,0.00022467,2]
[336919034,1725241873232,-500.0,0.00022467,2]
[336919035,1725241873242,-744.88,0.00022467,2]
[336919036,1725241873253,-744.88,0.00022467,2]
[336919037,1725241873262,-744.88,0.00022467,2]
[336919038,1725241873272,-500.0,0.00022467,2]
[336919039,1725241873283,-500.0,0.00022467,2]
[336919040,1725241873292,-853.61,0.00022467,2]
[336919041,1725241873303,-500.0,0.00022467,2]
[336919042,1725241873313,-489.05653119,0.00022467,2]
[336919043,1725241873325,-500.0,0.00022467,2]
[336919044,1725241873334,-500.0,0.00022467,2]
[336919045,1725241873344,-500.0,0.00022467,2]
[336919046,1725241873355,-500.0,0.00022467,2]
[336919047,1725241873365,-897.76,0.00022467,2]
[336919048,1725241873375,-897.76,0.00022467,2]
[336919049,1725241873386,-897.76,0.00022467,2]
[336919050,1725241873396,-500.0,0.00022467,2]
[336919051,1725241873407,-637.96478494,0.00022467,2]
[336919052,1725241873417,-941.6,0.00022467,2]
[336919053,1725241873427,-1063.26,0.00022467,2]
[336919054,1725241873437,-1063.26,0.00022467,2]
[336919055,1725241873447,-1063.26,0.00022467,2]
[336919056,1725241873457,-500.0,0.00022467,2]
[336919057,1725241873466,-500.0,0.00022467,2]
[336919058,1725241873476,-500.0,0.00022467,2]
[336919059,1725241873485,-659.46,0.00022467,2]
[336919060,1725241873495,-209.80243274,0.00022467,2]
[336919061,1725241873504,-840.6,0.00022467,2]
[336919062,1725241873513,-840.6,0.00022467,2]
[336919063,1725241873523,-500.0,0.00022467,2]
[336919064,1725241873532,-840.6,0.00022467,2]
[336919065,1725241873542,-500.0,0.00022467,2]
[336919066,1725241873551,-806.42,0.00022467,2]
[336919067,1725241873562,-806.42,0.00022467,2]
[336919068,1725241873572,-806.42,0.00022467,2]
[336919069,1725241873583,-1110.72,0.00022467,2]
[336919070,1725241873593,-1110.72,0.00022467,2]
[336919071,1725241873602,-1110.72,0.00022467,2]
[336919072,1725241873613,-728.3,0.00022467,2]
[336919073,1725241873623,-728.3,0.00022467,2]
[336919074,1725241873634,-500.0,0.00022467,2]
[336919075,1725241873643,-728.3,0.00022467,2]
[336919076,1725241873652,-500.0,0.00022467,2]
[336919077,1725241873661,-500.0,0.00022467,2]
[336919078,1725241873671,-500.0,0.00022467,2]
[336919079,1725241873681,-500.0,0.00022467,2]
[336919080,1725241873691,-334.34,0.00022467,2]
[336919081,1725241873703,-975.4,0.00022467,2]
[336919082,1725241873721,-500.0,0.00022467,2]
[336919083,1725241873730,-975.4,0.00022467,2]
[336919084,1725241873739,-500.0,0.00022467,2]
[336919085,1725241873750,-975.4,0.00022467,2]
[336919086,1725241873760,-500.0,0.00022467,2]
[336919087,1725241873770,-729.14,0.00022467,2]
[336919088,1725241873779,-1208.26,0.00022467,2]
[336919089,1725241873789,-565.0,0.00022467,2]
[336919090,1725241873797,-773.1,0.00022467,2]
[336919091,1725241873806,-565.0,0.00022467,2]
[336919092,1725241873815,-773.1,0.00022467,2]
[336919093,1725241873825,-773.1,0.00022467,2]
[336919094,1725241873835,-999.0,0.00022467,2]
[336919095,1725241873844,-1991.07,0.00022467,2]
[336919096,1725241873853,-999.0,0.00022467,2]
[336919097,1725241873862,-1991.07,0.00022467,2]
[336919098,1725241873871,-999.0,0.00022467,2]
[336919099,1725241873881,-1991.07,0.00022467,2]
[336919100,1725241873890,-500.0,0.00022467,2]
[336919101,1725241873899,-500.0,0.00022467,2]
[336919102,1725241873908,-500.0,0.00022467,2]
[336919103,1725241873917,-500.0,0.00022467,2]
[336919104,1725241873926,-500.0,0.00022467,2]
[336919105,1725241873935,-570.83,0.00022467,2]
[336919106,1725241873945,-500.0,0.00022467,2]
[336919107,1725241873954,-776.91,0.00022467,2]
[336919108,1725241873967,-500.0,0.00022467,2]
[336919109,1725241873975,-500.0,0.00022467,2]
[336919110,1725241873984,-500.0,0.00022467,2]
[336919111,1725241873993,-500.0,0.00022467,2]
[336919112,1725241874002,-500.0,0.00022467,2]
[336919113,1725241874011,-500.0,0.00022467,2]
[336919114,1725241874021,-500.0,0.00022467,2]
[336919115,1725241874031,-500.0,0.00022467,2]
[336919116,1725241874041,-808.3,0.00022467,2]
[336919117,1725241874052,-500.0,0.00022467,2]
[336919118,1725241874062,-808.3,0.00022467,2]
[336919119,1725241874071,-719.55,0.00022467,2]
[336919120,1725241874084,-754.85,0.00022467,2]
[336919121,1725241874093,-500.0,0.00022467,2]
[336919122,1725241874103,-1168.88,0.00022467,2]
[336919123,1725241874112,-681.63,0.00022467,2]
[336919124,1725241874122,-1380.25,0.00022467,2]
[336919125,1725241874131,-1380.25,0.00022467,2]
[336919126,1725241874140,-681.63,0.00022467,2]
[336919127,1725241874150,-1380.25,0.00022467,2]
[336919128,1725241874159,-681.63,0.00022467,2]
[336919129,1725241874170,-500.0,0.00022467,2]
[336919130,1725241874179,-500.0,0.00022467,2]
[336919131,1725241874188,-500.0,0.00022467,2]
[336919132,1725241874197,-153.47692,0.00022467,7]
[336919133,1725241874211,-500.0,0.00022467,2]
[336919134,1725241874221,-500.0,0.00022467,2]
[336919135,1725241874230,-500.0,0.00022467,2]
[336919136,1725241874240,-500.0,0.00022467,2]
[336919137,1725241874250,-1913.62,0.00022467,2]
[336919138,1725241874259,-500.0,0.00022467,2]
[336919139,1725241874269,-158.556206,0.00022467,7]
[336919140,1725241874278,-500.0,0.00022467,2]
[336919141,1725241874288,-500.0,0.00022467,2]
[336919142,1725241874297,-500.0,0.00022467,2]
[336919143,1725241874307,-500.0,0.00022467,2]
[336919144,1725241874317,-500.0,0.00022467,2]
[336919145,1725241874326,-500.0,0.00022467,2]
[336919146,1725241874336,-500.0,0.00022467,2]
[336919147,1725241874345,-500.0,0.00022467,2]
[336919148,1725241874355,-500.0,0.00022467,2]
[336919149,1725241874364,-500.0,0.00022467,2]
[336919150,1725241874373,-171.02699746,0.00022467,2]
[336919151,1725241874383,-570.44,0.00022467,2]
[336919152,1725241874391,-151.0,0.00022467,7]
[336919153,1725241874401,-151.0,0.00022467,7]
[336919154,1725241874410,-549.42,0.00022467,2]
[336919155,1725241874419,-549.42,0.00022467,2]
[336919156,1725241874429,-500.0,0.00022467,2]
[336919157,1725241874438,-549.42,0.00022467,2]
[336919158,1725241874447,-1020.73,0.00022467,2]
[336919159,1725241874457,-522.39,0.00022467,2]
[336919160,1725241874466,-500.0,0.00022467,2]
[336919161,1725241874475,-586.82,0.00022467,2]
[336919162,1725241874485,-1009.91,0.00022467,2]
[336919163,1725241874494,-586.82,0.00022467,2]
[336919164,1725241874503,-1009.91,0.00022467,2]
[336919165,1725241874512,-586.82,0.00022467,2]
[336919166,1725241874522,-1009.91,0.00022467,2]
[336919167,1725241874531,-744.6,0.00022467,2]
[336919168,1725241874540,-151.0,0.00022467,7]
[336919169,1725241874549,-744.6,0.00022467,2]
[336919170,1725241874559,-744.6,0.00022467,2]
[336919171,1725241874568,-284.014018,0.00022467,7]
[336919172,1725241874577,-679.71,0.00022467,2]
[336919173,1725241874586,-679.71,0.00022467,2]
[336919174,1725241874596,-500.0,0.00022467,2]
[336919175,1725241874605,-221.70120607,0.00022467,2]
[336919176,1725241874615,-538.44,0.00022467,2]
[336919177,1725241874624,-538.44,0.00022467,2]
[336919178,1725241874633,-699.89,0.00022467,2]
[336919179,1725241874642,-538.44,0.00022467,2]
[336919180,1725241874652,-500.0,0.00022467,2]
[336919181,1725241874661,-699.89,0.00022467,2]
[336919182,1725241874670,-500.0,0.00022467,2]
[336919183,1725241874679,-699.89,0.00022467,2]
[336919184,1725241874688,-1255.29,0.00022467,2]
[336919185,1725241874697,-500.0,0.00022467,2]
[336919186,1725241874707,-500.0,0.00022467,2]
[336919187,1725241874716,-500.0,0.00022467,2]
[336919188,1725241874725,-500.0,0.00022467,2]
[336919189,1725241874735,-546.52,0.00022467,2]
[336919190,1725241874744,-546.52,0.00022467,2]
[336919191,1725241874756,-503.74,0.00022467,2]
[336919192,1725241874766,-503.74,0.00022467,2]
[336919193,1725241874775,-503.74,0.00022467,2]
[336919194,1725241874785,-786.85,0.00022467,2]
[336919195,1725241874795,-546.52,0.00022467,2]
[336919196,1725241874804,-874.3,0.00022467,2]
[336919197,1725241874814,-1092.13,0.00022467,2]
[336919198,1725241874823,-624.25,0.00022467,2]
[336919199,1725241874835,-624.25,0.00022467,2]
[336919200,1725241874843,-500.0,0.00022467,2]
[336919201,1725241874853,-1030.96,0.00022467,2]
[336919202,1725241874862,-1030.96,0.00022467,2]
[336919203,1725241874872,-1030.96,0.00022467,2]
[336919204,1725241874881,-583.28,0.00022467,2]
[336919205,1725241874890,-583.28,0.00022467,2]
[336919206,1725241874899,-583.28,0.00022467,2]
[336919207,1725241874908,-500.0,0.00022467,2]
[336919208,1725241874917,-788.01,0.00022467,2]
[336919209,1725241874927,-715.1,0.00022467,2]
[336919210,1725241874936,-715.1,0.00022467,2]
[336919211,1725241874945,-715.1,0.00022467,2]
[336919212,1725241874955,-895.93,0.00022467,2]
[336919213,1725241874964,-2084.4,0.00022467,2]
[336919214,1725241874973,-500.0,0.00022467,2]
[336919215,1725241874982,-500.0,0.00022467,2]
[336919216,1725241874991,-500.0,0.00022467,2]
[336919217,1725241875000,-500.0,0.00022467,2]
[336919218,1725241875009,-500.0,0.00022467,2]
[336919219,1725241875019,-500.0,0.00022467,2]
[336919220,1725241875028,-500.0,0.00022467,2]
[336919221,1725241875037,-1248.92,0.00022467,2]
[336919222,1725241875047,-1248.92,0.00022467,2]
[336919223,1725241875056,-895.04,0.00022467,2]
[336919224,1725241875066,-1248.92,0.00022467,2]
[336919225,1725241875076,-895.04,0.00022467,2]
[336919226,1725241875085,-895.04,0.00022467,2]
[336919227,1725241875095,-500.0,0.00022467,2]
[336919228,1725241875106,-500.0,0.00022467,2]
[336919229,1725241875117,-500.0,0.00022467,2]
[336919230,1725241875126,-500.0,0.00022467,2]
[336919231,1725241875136,-1706.13,0.00022467,2]
[336919232,1725241875145,-151.0,0.00022467,7]
[336919233,1725241875155,-616.48,0.00022467,2]
[336919234,1725241875165,-767.71,0.00022467,2]
[336919235,1725241875174,-151.0,0.00022467,7]
[336919236,1725241875183,-616.48,0.00022467,2]
[336919237,1725241875193,-767.71,0.00022467,2]
[336919238,1725241875202,-616.48,0.00022467,2]
[336919239,1725241875212,-767.71,0.00022467,2]
[336919240,1725241875221,-151.0,0.00022467,7]
[336919241,1725241875231,-9343.77,0.00022467,2]
[336919242,1725241875241,-9343.77,0.00022467,2]
[336919243,1725241875251,-512.31,0.00022467,2]
[336919244,1725241875260,-9343.77,0.00022467,2]
[336919245,1725241875269,-500.0,0.00022467,2]
[336919246,1725241875278,-500.0,0.00022467,2]
[336919247,1725241875288,-500.0,0.00022467,2]
[336919248,1725241875299,-500.0,0.00022467,2]
[336919249,1725241875308,-500.0,0.00022467,2]
[336919250,1725241875318,-439.23142104,0.00022467,2]
[336919251,1725241875327,-500.0,0.00022467,2]
[336919252,1725241875337,-500.0,0.00022467,2]
[336919253,1725241875346,-500.0,0.00022467,2]
[336919254,1725241875356,-500.0,0.00022467,2]
[336919255,1725241875366,-500.0,0.00022467,2]
[336919256,1725241875376,-500.0,0.00022467,2]
[336919257,1725241875388,-500.0,0.00022467,2]
[336919258,1725241875399,-682.95,0.00022467,2]
[336919259,1725241875410,-500.0,0.00022467,2]
[336919260,1725241875421,-682.95,0.00022467,2]
[336919261,1725241875430,-500.0,0.00022467,2]
[336919262,1725241875441,-500.0,0.00022467,2]
[336919263,1725241875453,-682.95,0.00022467,2]
[336919264,1725241875463,-681.6,0.00022467,2]
[336919265,1725241875472,-764.66,0.00022467,2]
[336919267,1725241875482,-764.66,0.00022467,2]
[336919268,1725241875492,-764.66,0.00022467,2]
[336919270,1725241875502,-629.85,0.00022467,2]
[336919271,1725241875512,-1147.78,0.00022467,2]
[336919272,1725241875523,-791.95,0.00022467,2]
[336919273,1725241875533,-671.48,0.00022467,2]
[336919274,1725241875545,-671.48,0.00022467,2]
[336919275,1725241875555,-500.0,0.00022467,2]
[336919276,1725241875564,-500.0,0.00022467,2]
[336919277,1725241875575,-500.0,0.00022467,2]
[336919278,1725241875585,-834.73,0.00022467,2]
[336919279,1725241875596,-500.0,0.00022467,2]
[336919280,1725241875606,-834.73,0.00022467,2]
[336919281,1725241875616,-724.78,0.00022467,2]
[336919282,1725241875626,-834.73,0.00022467,2]
[336919283,1725241875638,-500.0,0.00022467,2]
[336919284,1725241875649,-500.0,0.00022467,2]
[336919285,1725241875659,-500.0,0.00022467,2]
[336919286,1725241875670,-500.0,0.00022467,2]
[336919287,1725241875680,-772.26,0.00022467,2]
[336919288,1725241875689,-772.26,0.00022467,2]
[336919289,1725241875698,-772.26,0.00022467,2]
[336919290,1725241875708,-500.0,0.00022467,2]
[336919291,1725241875718,-1901.51,0.00022467,2]
[336919292,1725241875727,-500.0,0.00022467,2]
[336919293,1725241875736,-714.86,0.00022467,2]
[336919294,1725241875748,-714.86,0.00022467,2]
[336919295,1725241875758,-714.86,0.00022467,2]
[336919296,1725241875767,-1169.01,0.00022467,2]
[336919297,1725241875776,-503.31,0.00022467,2]
[336919298,1725241875787,-1169.01,0.00022467,2]
[336919299,1725241875795,-503.31,0.00022467,2]
[336919300,1725241875804,-503.31,0.00022467,2]
[336919301,1725241875813,-634.42895955,0.00022467,2]
[336919302,1725241875824,-500.0,0.00022467,2]
[336919303,1725241875833,-500.0,0.00022467,2]
[336919304,1725241875842,-500.0,0.00022467,2]
[336919305,1725241875852,-1314.42,0.00022467,2]
[336919306,1725241875862,-904.29,0.00022467,2]
[336919307,1725241875873,-151.0,0.00022467,7]
[336919308,1725241875885,-1126.39,0.00022467,2]
[336919309,1725241875894,-500.0,0.00022467,2]
[336919310,1725241875906,-1126.39,0.00022467,2]
[336919311,1725241875917,-503.49421089,0.00022467,2]
[336919312,1725241875927,-500.0,0.00022467,2]
[336919313,1725241875937,-1126.39,0.00022467,2]
[336919314,1725241875949,-500.0,0.00022467,2]
[336919315,1725241875959,-541.78589985,0.00022467,2]
[336919316,1725241875969,-500.0,0.00022467,2]
[336919317,1725241875979,-151.0,0.00022467,7]
[336919318,1725241875988,-500.0,0.00022467,2]
[336919319,1725241876000,-537.45,0.00022467,2]
[336919320,1725241876010,-500.0,0.00022467,2]
[336919321,1725241876023,-500.0,0.00022467,2]
[336919322,1725241876032,-500.0,0.00022467,2]
[336919323,1725241876042,-930.31,0.00022467,2]
[336919324,1725241876051,-930.31,0.00022467,2]
[336919325,1725241876061,-162.37131832,0.00022467,2]
[336919326,1725241876070,-930.31,0.00022467,2]
[336919327,1725241876079,-723.85,0.00022467,2]
[336919328,1725241876089,-723.85,0.00022467,2]
[336919329,1725241876098,-723.85,0.00022467,2]
[336919330,1725241876107,-500.0,0.00022467,2]
[336919331,1725241876117,-500.0,0.00022467,2]
[336919332,1725241876127,-789.66,0.00022467,2]
[336919333,1725241876137,-500.0,0.00022467,2]
[336919334,1725241876334,-500.0,0.00022467,2]
[336919335,1725241876345,-789.66,0.00022467,2]
[336919336,1725241876355,-1121.12,0.00022467,2]
[336919337,1725241876365,-500.0,0.00022467,2]
[336919338,1725241876374,-789.66,0.00022467,2]
[336919339,1725241876384,-582.83,0.00022467,2]
[336919340,1725241876393,-567.60000105,0.00022467,2]
[336919341,1725241876403,-901.22,0.00022467,2]
[336919342,1725241876412,-901.22,0.00022467,2]
[336919343,1725241876422,-901.22,0.00022467,2]
[336919344,1725241876432,-575.47,0.00022467,2]
[336919345,1725241876443,-1341.85,0.00022467,2]
[336919346,1725241876452,-575.47,0.00022467,2]
[336919347,1725241876462,-575.47,0.00022467,2]
[336919348,1725241876472,-1113.86,0.00022467,2]
[336919349,1725241876482,-962.71,0.00022467,2]
[336919350,1725241876492,-962.71,0.00022467,2]
[336919351,1725241876502,-962.71,0.00022467,2]
[336919352,1725241876512,-500.0,0.00022467,2]
[336919353,1725241876522,-500.0,0.00022467,2]
[336919354,1725241876531,-500.0,0.00022467,2]
[336919355,1725241876541,-500.0,0.00022467,2]
[336919356,1725241876551,-539.33,0.00022467,2]
[336919357,1725241876561,-539.33,0.00022467,2]
[336919358,1725241876571,-539.33,0.00022467,2]
[336919359,1725241876580,-500.0,0.00022467,2]
[336919360,1725241876590,-1300.94,0.00022467,2]
[336919361,1725241876599,-1300.94,0.00022467,2]
[336919362,1725241876609,-653.29,0.00022467,2]
[336919363,1725241876618,-653.29,0.00022467,2]
[336919364,1725241876629,-1300.94,0.00022467,2]
[336919365,1725241876638,-653.29,0.00022467,2]
[336919366,1725241876647,-920.04,0.00022467,2]
[336919367,1725241876656,-1015.25,0.00022467,2]
[336919368,1725241876665,-1015.25,0.00022467,2]
[336919369,1725241876676,-1100.56,0.00022467,2]
[336919370,1725241876686,-556.06,0.00022467,2]
[336919371,1725241876697,-556.06,0.00022467,2]
[336919372,1725241876708,-556.06,0.00022467,2]
[336919373,1725241876717,-2551.2,0.00022467,2]
[336919374,1725241876727,-774.0,0.00022467,2]
[336919375,1725241876736,-882.46,0.00022467,2]
[336919376,1725241876746,-2551.2,0.00022467,2]
[336919377,1725241876760,-774.0,0.00022467,2]
[336919378,1725241876771,-2551.2,0.00022467,2]
[336919379,1725241876781,-774.0,0.00022467,2]
[336919380,1725241876791,-2136.87,0.00022467,2]
[336919381,1725241876803,-2136.87,0.00022467,2]
[336919382,1725241876813,-2136.87,0.00022467,2]
[336919383,1725241876824,-500.0,0.00022467,2]
[336919384,1725241876835,-500.0,0.00022467,2]
[336919385,1725241876846,-500.0,0.00022467,2]
[336919386,1725241876856,-753.52,0.00022467,2]
[336919387,1725241876867,-500.0,0.00022467,2]
[336919388,1725241876878,-753.52,0.00022467,2]
[336919389,1725241876889,-500.0,0.00022467,2]
[336919390,1725241876900,-753.52,0.00022467,2]
[336919391,1725241876911,-500.0,0.00022467,2]
[336919392,1725241876921,-500.0,0.00022467,2]
[336919393,1725241876933,-778.09,0.00022467,2]
[336919394,1725241876943,-500.0,0.00022467,2]
[336919395,1725241876953,-500.0,0.00022467,2]
[336919396,1725241876969,-1068.69,0.00022467,2]
[336919397,1725241876978,-1642.36,0.00022467,2]
[336919398,1725241876988,-1642.36,0.00022467,2]
[336919399,1725241876998,-959.07,0.00022467,2]
[336919400,1725241877009,-1642.36,0.00022467,2]
[336919401,1725241877018,-959.07,0.00022467,2]
[336919402,1725241877027,-861.18,0.00022467,2]
[336919403,1725241877037,-861.18,0.00022467,2]
[336919404,1725241877046,-959.07,0.00022467,2]
[336919405,1725241877055,-861.18,0.00022467,2]
[336919406,1725241877065,-591.61,0.00022467,2]
[336919407,1725241877075,-591.61,0.00022467,2]
[336919408,1725241877084,-1099.79,0.00022467,2]
[336919409,1725241877094,-591.61,0.00022467,2]
[336919410,1725241877103,-1901.91,0.00022467,2]
[336919411,1725241877113,-670.58,0.00022467,2]
[336919412,1725241877123,-1901.91,0.00022467,2]
[336919413,1725241877132,-670.58,0.00022467,2]
[336919414,1725241877141,-1901.91,0.00022467,2]
[336919415,1725241877150,-670.58,0.00022467,2]
[336919416,1725241877160,-705.48,0.00022467,2]
[336919417,1725241877170,-759.66,0.00022467,2]
[336919418,1725241877179,-705.48,0.00022467,2]
[336919419,1725241877189,-759.66,0.00022467,2]
[336919420,1725241877198,-705.48,0.00022467,2]
[336919421,1725241877209,-759.66,0.00022467,2]
[336919422,1725241877218,-1301.42,0.00022467,2]
[336919423,1725241877228,-1471.24,0.00022467,2]
[336919424,1725241877237,-500.0,0.00022467,2]
[336919425,1725241877246,-500.0,0.00022467,2]
[336919426,1725241877255,-500.0,0.00022467,2]